bitfinex-derivatives/quotes_BTCF0:USTF0_20241019
["timestamp","ask_amount","ask_price","bid_price","bid_amount"]
[1729339761273,0.066017,68161.0,68160.0,0.24553425]
[1729339761468,0.066017,68161.0,68160.0,0.41838334]
[1729339765161,0.066017,68161.0,68160.0,0.24553425]
[1729339772279,0.066017,68161.0,68160.0,0.41849268]
[1729339775586,0.066017,68161.0,68160.0,0.4183956]
[1729339780277,0.066017,68161.0,68160.0,0.24553425]
[1729339787486,0.066017,68161.0,68160.0,0.4184374]
[1729339791283,0.066013,68165.0,68160.0,0.52769912]
[1729339791483,0.066008,68170.0,68167.0,0.06601]
[1729339791787,0.066008,68170.0,68168.0,0.82100064]
[1729339791978,0.066008,68170.0,68169.0,0.17290315]
[1729339792393,0.066008,68170.0,68169.0,0.39432813]
[1729339793385,0.066008,68170.0,68169.0,0.36631453]
[1729339794693,0.066008,68170.0,68169.0,0.36585092]
[1729339795888,0.066008,68170.0,68169.0,0.39187102]
[1729339798885,0.066008,68170.0,68169.0,0.48528079]
[1729339799990,0.066008,68170.0,68169.0,0.39187102]
[1729339800191,0.066008,68170.0,68169.0,0.48528337]
[1729339800396,0.066008,68170.0,68169.0,0.32586202]
[1729339802489,0.066008,68170.0,68169.0,0.24744508]
[1729339809711,0.066008,68170.0,68169.0,0.31345408]
[1729339810395,0.066008,68170.0,68169.0,0.48532703]
[1729339812302,0.066005,68174.0,68173.0,0.066004]
[1729339812496,0.066005,68174.0,68173.0,0.59844554]
[1729339812799,0.00220067,68175.0,68174.0,0.066004]
[1729339813006,0.066002,68176.0,68175.0,0.066002]
[1729339813199,0.066002,68176.0,68175.0,0.23764354]
[1729339813498,0.065999,68179.0,68178.0,0.066]
[1729339813698,0.3608,68180.0,68178.0,0.066]
[1729339813699,0.3608,68180.0,68179.0,0.065999]
[1729339813891,0.065996,68182.0,68180.0,0.065998]
[1729339814209,0.065996,68182.0,68181.0,0.38635239]
[1729339814504,0.065996,68182.0,68181.0,0.2984946]
[1729339815393,0.065996,68182.0,68181.0,0.38632761]
[1729339816196,0.065996,68182.0,68181.0,0.2984946]
[1729339816998,0.065996,68182.0,68181.0,0.29817553]
[1729339817297,0.065996,68182.0,68181.0,0.38600486]
[1729339817501,0.065996,68182.0,68181.0,0.22018961]
[1729339818895,0.065996,68182.0,68181.0,0.24650369]
[1729339825509,0.065996,68182.0,68181.0,0.3245236]
[1729339832508,0.065996,68182.0,68181.0,0.24650369]
[1729339833814,0.065996,68182.0,68181.0,0.31250069]
[1729339840624,0.065996,68182.0,68181.0,0.48375607]
[1729339850228,0.065996,68182.0,68181.0,0.48386322]
[1729339854523,0.065996,68182.0,68181.0,0.31250069]
[1729339862533,0.065996,68182.0,68181.0,0.484025]
[1729339862933,0.065996,68182.0,68181.0,0.31250069]
[1729339863133,0.065996,68182.0,68181.0,0.48402492]
[1729339866034,0.065991,68187.0,68186.0,0.06599]
[1729339866236,0.065991,68187.0,68186.0,0.15926276]
[1729339866540,0.065991,68187.0,68186.0,0.37912212]
[1729339868133,0.3608,68191.0,68189.0,0.065989]
[1729339868134,0.065988,68190.0,68189.0,0.065989]
[1729339868329,0.065988,68190.0,68189.0,0.15926176]
[1729339869626,0.065988,68190.0,68189.0,0.065989]
[1729339872039,0.065988,68190.0,68189.0,0.09201404]
[1729339872240,0.065988,68190.0,68189.0,0.02602504]
[1729339872543,0.064,68193.0,68187.0,0.3608]
[1729339872544,0.06599,68188.0,68187.0,0.3608]
[1729339872734,0.06619,68188.0,68187.0,0.3608]
[1729339872935,0.06619,68188.0,68187.0,0.57948205]
[1729339873237,0.06619,68188.0,68187.0,0.61612305]
[1729339873632,0.06619,68188.0,68187.0,0.64314367]
[1729339874030,0.06619,68188.0,68187.0,0.57715267]
[1729339876031,0.06619,68188.0,68187.0,0.24570267]
[1729339877642,0.03694233,68188.0,68187.0,0.416857]
[1729339877832,0.03694233,68188.0,68187.0,0.482848]
[1729339877833,0.0002,68188.0,68187.0,0.482848]
[1729339878034,0.0002,68188.0,68187.0,0.40476528]
[1729339878236,0.06619,68188.0,68187.0,0.40476528]
[1729339880736,0.06619,68188.0,68187.0,0.48281667]
[1729339882141,0.06619,68188.0,68187.0,0.40464079]
[1729339882347,0.06619,68188.0,68187.0,0.39958579]
[1729339883546,0.06619,68188.0,68187.0,0.47758799]
[1729339883745,0.06619,68188.0,68187.0,0.39958579]
[1729339885047,0.0002,68188.0,68187.0,0.39958579]
[1729339885345,0.0002,68188.0,68187.0,0.31169367]
[1729339885546,0.0002,68188.0,68187.0,0.39959468]
[1729339885934,0.0002,68188.0,68187.0,0.31169367]
[1729339886147,0.0002,68188.0,68187.0,0.47760307]
[1729339886348,0.0002,68188.0,68187.0,0.39959344]
[1729339886644,0.0002,68188.0,68187.0,0.31169367]
[1729339887547,0.0002,68188.0,68187.0,0.67249367]
[1729339887943,0.0002,68188.0,68187.0,0.76542808]
[1729339892548,0.0002,68188.0,68187.0,0.67249367]
[1729339893143,0.06619,68188.0,68187.0,0.64314367]
[1729339896947,0.06619,68188.0,68187.0,0.28234367]
[1729339899546,0.06619,68188.0,68187.0,0.45358082]
[1729339900643,0.06619,68188.0,68187.0,0.55626544]
[1729339901150,0.06619,68188.0,68187.0,0.45358082]
[1729339901358,0.06619,68188.0,68187.0,0.45375126]
[1729339904258,0.06619,68188.0,68187.0,0.55643588]
[1729339905659,0.06619,68188.0,68187.0,0.45375126]
[1729339905855,0.06619,68188.0,68187.0,0.45351569]
[1729339906461,0.03689083,68188.0,68187.0,0.45351569]
[1729339907554,0.03689083,68188.0,68187.0,0.28234367]
[1729339914752,0.03689083,68188.0,68187.0,0.37539341]
[1729339915366,0.03689083,68188.0,68187.0,0.28234367]
[1729339915568,0.03689083,68188.0,68187.0,0.37539371]
[1729339917058,0.03689083,68188.0,68187.0,0.4834158]
[1729339917257,0.03689083,68188.0,68187.0,0.58610042]
[1729339917557,0.03689083,68188.0,68187.0,0.4834158]
[1729339918158,0.03689083,68188.0,68187.0,0.8442158]
[1729339920275,0.03689083,68188.0,68187.0,0.84422804]
[1729339921165,0.03689083,68188.0,68187.0,0.94689121]
[1729339921866,0.03689083,68188.0,68187.0,0.91698441]
[1729339922061,0.03689083,68188.0,68187.0,1.02511854]
[1729339922369,0.03689083,68188.0,68187.0,0.94699434]
[1729339922665,0.03689083,68188.0,68187.0,0.64314367]
[1729339926369,0.0322,68193.0,68191.0,0.065987]
[1729339926370,0.065987,68192.0,68191.0,0.065987]
[1729339926572,0.12341905,68192.0,68191.0,0.065987]
[1729339927172,0.065987,68192.0,68191.0,0.065987]
[1729339929675,0.065987,68192.0,68191.0,0.15905217]
[1729339931067,0.065987,68192.0,68191.0,0.065987]
[1729339932780,0.065987,68192.0,68191.0,0.14410506]
[1729339932976,0.065987,68192.0,68191.0,0.065987]
[1729339935271,0.065987,68192.0,68191.0,0.15397675]
[1729339935679,0.065987,68192.0,68191.0,0.23207786]
[1729339937179,0.065987,68192.0,68191.0,0.14408811]
[1729339937980,0.065987,68192.0,68191.0,0.23207522]
[1729339938476,0.065987,68192.0,68191.0,0.14408811]
[1729339942570,0.065987,68192.0,68191.0,0.14417478]
[1729339944383,0.065987,68192.0,68191.0,0.07818778]
[1729339944774,0.065987,68192.0,68190.0,0.065988]
[1729339944970,0.0002,68191.0,68190.0,0.065988]
[1729339945374,0.0002,68191.0,68190.0,0.28596101]
[1729339945774,0.066187,68191.0,68190.0,0.28596101]
[1729339949989,0.066187,68191.0,68190.0,0.21997301]
[1729339950379,0.066187,68191.0,68189.0,0.21884662]
[1729339950680,0.0002,68190.0,68189.0,0.065989]
[1729339951071,0.0002,68190.0,68189.0,0.28578538]
[1729339951287,0.0002,68190.0,68189.0,0.065989]
[1729339951477,0.0002,68190.0,68189.0,0.28578538]
[1729339952680,0.0002,68190.0,68189.0,0.45708403]
[1729339953784,0.066188,68190.0,68189.0,0.45708403]
[1729339959781,0.066188,68190.0,68189.0,0.28578538]
[1729339967798,0.066188,68190.0,68189.0,0.45723589]
[1729339969807,0.066188,68190.0,68189.0,0.66816006]
[1729339969988,0.066188,68190.0,68189.0,0.45723589]
[1729339971196,0.0002,68191.0,68190.0,0.065988]
[1729339971502,0.0002,68191.0,68190.0,0.41210131]
[1729339973891,0.0002,68191.0,68190.0,0.49029427]
[1729339976191,0.0002,68191.0,68190.0,0.31886864]
[1729339976506,0.0002,68191.0,68190.0,0.49047086]
[1729339979115,0.0318,68199.0,68190.0,0.42448286]
[1729339979316,0.065983,68195.0,68194.0,0.361]
[1729339979515,0.065983,68195.0,68194.0,0.53252427]
[1729339979714,0.065983,68195.0,68194.0,0.39071107]
[1729339980615,0.065983,68195.0,68194.0,0.2191868]
[1729339980927,0.065983,68195.0,68194.0,0.39047587]
[1729339981119,0.065983,68195.0,68194.0,0.55331776]
[1729339982612,0.065983,68195.0,68194.0,0.61930176]
[1729339982808,0.065983,68195.0,68194.0,0.39666899]
[1729339982809,0.12325139,68195.0,68194.0,0.39666899]
[1729339984219,0.12279967,68195.0,68194.0,0.39666899]
[1729339985814,0.12279967,68195.0,68194.0,0.42343022]
[1729339988521,0.12279967,68195.0,68194.0,0.78423022]
[1729339989727,0.065983,68195.0,68194.0,1.06479045]
[1729339990036,0.065983,68195.0,68194.0,0.95615937]
[1729339993629,0.065983,68195.0,68194.0,0.9560597]
[1729339996326,0.0321,68204.0,68197.0,0.065981]
[1729339996528,0.065979,68200.0,68199.0,0.08790049]
[1729339996736,0.065979,68200.0,68199.0,0.16649122]
[1729339997932,0.065979,68200.0,68199.0,0.0002]
[1729340002035,1.466659,68200.0,68199.0,0.0002]
[1729340002236,1.466659,68200.0,68186.0,0.04415235]
[1729340002237,0.065983,68195.0,68186.0,0.04415235]
[1729340002425,0.06619,68188.0,68186.0,0.0002]
[1729340002628,0.361,68188.0,68180.0,0.40475235]
[1729340002935,0.361,68188.0,68176.0,0.04397401]
[1729340002936,0.066,68178.0,68176.0,0.04397401]
[1729340003135,0.0662,68178.0,68174.0,0.3608]
[1729340004828,0.0662,68178.0,68177.0,0.16949557]
[1729340005235,0.0662,68178.0,68177.0,0.08159508]
[1729340007630,0.0662,68178.0,68177.0,0.08151099]
[1729340008533,0.0662,68178.0,68177.0,0.15459295]
[1729340008935,0.0662,68178.0,68177.0,0.08151099]
[1729340009237,0.0662,68178.0,68177.0,0.07526939]
[1729340010139,0.0662,68178.0,68177.0,0.0022]
[1729340010942,0.0662,68178.0,68177.0,0.07526939]
[1729340011247,0.0662,68178.0,68177.0,0.0022]
[1729340012539,0.0002,68178.0,68177.0,0.36651767]
[1729340012732,0.0002,68178.0,68177.0,0.39811767]
[1729340012933,0.0002,68178.0,68177.0,0.31904445]
[1729340015935,0.0002,68178.0,68177.0,0.37746589]
[1729340016141,0.0002,68178.0,68177.0,0.31904445]
[1729340019940,0.0002,68178.0,68177.0,0.39802612]
[1729340021048,0.0662,68178.0,68177.0,0.33202512]
[1729340024249,0.0662,68178.0,68177.0,0.30042512]
[1729340024438,0.0662,68178.0,68177.0,0.39462213]
[1729340025442,0.0662,68178.0,68177.0,0.75542213]
[1729340026747,0.0662,68178.0,68177.0,0.75552473]
[1729340031147,0.0662,68178.0,68177.0,0.96768358]
[1729340031447,0.0662,68178.0,68177.0,0.68478563]
[1729340031654,0.0662,68178.0,68177.0,0.86547891]
[1729340032053,0.0662,68178.0,68177.0,0.93147991]
[1729340032551,0.0662,68178.0,68177.0,1.04888267]
[1729340032855,0.0662,68178.0,68177.0,0.93147991]
[1729340034948,0.0662,68178.0,68177.0,0.64824445]
[1729340036049,0.0002,68178.0,68177.0,0.64824445]
[1729340041454,0.0002,68178.0,68177.0,0.72152381]
[1729340042145,0.0002,68178.0,68177.0,0.80060796]
[1729340042348,0.0002,68178.0,68177.0,0.80060407]
[1729340043055,0.0002,68178.0,68177.0,0.9310264]
[1729340048756,0.065991,68187.0,68184.0,0.065994]
[1729340048947,0.065991,68187.0,68186.0,0.3608]
[1729340049360,0.065991,68187.0,68186.0,0.75494294]
[1729340050955,0.061091,68196.0,68186.0,0.75494294]
[1729340051156,0.065984,68194.0,68193.0,0.08792716]
[1729340051357,0.065984,68194.0,68193.0,0.07891897]
[1729340053861,0.0304,68196.0,68193.0,0.07882743]
[1729340054059,0.065983,68195.0,68194.0,0.16672294]
[1729340058064,0.0304,68196.0,68193.0,0.02070775]
[1729340058254,0.0304,68196.0,68191.0,0.0004]
[1729340058255,0.0002,68194.0,68191.0,0.0006]
[1729340058458,0.066186,68192.0,68191.0,0.0006]
[1729340058765,0.066186,68192.0,68191.0,0.22182451]
[1729340061366,0.066186,68192.0,68191.0,0.24314069]
[1729340065068,0.066186,68192.0,68191.0,0.41602864]
[1729340068270,0.066186,68192.0,68191.0,0.41620974]
[1729340069964,0.0002,68192.0,68191.0,0.41620974]
[1729340070169,0.0002,68192.0,68191.0,0.48219674]
[1729340073069,0.0002,68192.0,68191.0,0.3530774]
[1729340075975,0.0002,68192.0,68191.0,0.30912769]
[1729340080278,0.0002,68192.0,68191.0,0.59004697]
[1729340080668,0.0002,68192.0,68191.0,0.95084697]
[1729340081876,0.0002,68192.0,68191.0,0.95084966]
[1729340083175,0.0002,68192.0,68191.0,0.87228954]
[1729340083879,0.0002,68192.0,68191.0,0.97193743]
[1729340084079,0.0002,68192.0,68191.0,0.86934466]
[1729340085674,0.0002,68192.0,68191.0,0.97193679]
[1729340086078,0.0002,68192.0,68191.0,0.76356835]
[1729340087182,0.066186,68192.0,68191.0,0.66992769]
[1729340088886,0.0002,68192.0,68191.0,0.66992769]
[1729340093876,0.0321,68206.0,68200.0,7.933616]
[1729340094177,0.065978,68201.0,68200.0,7.933616]
[1729340094481,0.065978,68201.0,68200.0,7.904266]
[1729340095086,0.065978,68201.0,68200.0,7.99220258]
[1729340096086,0.065978,68201.0,68200.0,7.904266]
[1729340101692,0.065978,68201.0,68200.0,7.99509215]
[1729340102285,0.19486362,68201.0,68200.0,7.85292338]
[1729340102491,0.065978,68201.0,68200.0,7.85292338]
[1729340102694,0.27370976,68201.0,68200.0,7.85292338]
[1729340102894,0.27370976,68201.0,68200.0,7.87369363]
[1729340104087,0.19486362,68201.0,68200.0,7.87369363]
[1729340104594,0.19486362,68201.0,68200.0,7.8546348]
[1729340105381,0.19368242,68201.0,68200.0,7.8546348]
[1729340110187,0.065978,68201.0,68200.0,7.92795515]
[1729340114691,0.065978,68201.0,68200.0,7.8546348]
[1729340115194,0.065978,68201.0,68200.0,7.92794708]
[1729340119895,0.065978,68201.0,68200.0,7.8546348]
[1729340120199,0.065978,68201.0,68200.0,7.92794708]
[1729340121790,0.065978,68201.0,68200.0,7.8546348]
[1729340125399,0.19835472,68201.0,68200.0,7.8546348]
[1729340131003,0.19835472,68201.0,68200.0,7.9206138]
[1729340132298,0.065978,68201.0,68200.0,7.8692722]
[1729340134200,0.065974,68205.0,68203.0,0.065975]
[1729340134504,0.065974,68205.0,68204.0,0.096975]
[1729340134696,0.065974,68205.0,68204.0,0.17027264]
[1729340136801,0.065974,68205.0,68204.0,0.10429764]
[1729340140204,0.065974,68205.0,68204.0,0.17027264]
[1729340140406,0.065974,68205.0,68204.0,0.096975]
[1729340142004,0.065974,68205.0,68204.0,0.31808953]
[1729340144509,0.065974,68205.0,68204.0,0.40602443]
[1729340145002,0.065974,68205.0,68204.0,0.31808953]
[1729340145398,0.00220005,68209.0,68206.0,0.065972]
[1729340145598,0.065971,68208.0,68206.0,0.065972]
[1729340145803,0.065971,68208.0,68207.0,0.21848963]
[1729340146209,0.065971,68208.0,68207.0,0.28446163]
[1729340150214,0.065971,68208.0,68207.0,0.30574868]
[1729340151009,0.063871,68208.0,68207.0,0.30574868]
[1729340152207,0.063871,68208.0,68207.0,0.66654868]
[1729340152917,0.063871,68208.0,68207.0,0.30574868]
[1729340156509,0.063871,68208.0,68207.0,0.39534391]
[1729340157213,0.063871,68208.0,68207.0,0.32937191]
[1729340157712,0.063871,68208.0,68207.0,0.32936908]
[1729340161511,0.063871,68208.0,68207.0,0.32643851]
[1729340162213,0.063871,68208.0,68207.0,0.23977668]
[1729340163313,0.063871,68208.0,68207.0,0.02128705]
[1729340163618,0.065974,68205.0,68204.0,0.0312]
[1729340163922,0.065974,68205.0,68204.0,0.25089817]
[1729340164122,0.066174,68205.0,68204.0,0.31687317]
[1729340166123,0.066174,68205.0,68204.0,0.33825554]
[1729340170618,0.066174,68205.0,68204.0,0.42525484]
[1729340170814,0.066174,68205.0,68204.0,0.42525488]
[1729340174537,0.066174,68205.0,68204.0,0.33825554]
[1729340175034,0.0002,68205.0,68204.0,0.42533069]
[1729340176738,0.066174,68205.0,68204.0,0.42533069]
[1729340177031,0.066174,68205.0,68204.0,0.33825554]
[1729340179336,0.066174,68205.0,68204.0,0.69905554]
[1729340180228,0.066174,68205.0,68204.0,0.33825554]
[1729340185533,0.066174,68205.0,68204.0,0.4253688]
[1729340190944,0.066174,68205.0,68204.0,0.4576688]
[1729340192535,0.066174,68205.0,68204.0,0.37055554]
[1729340195347,0.066174,68205.0,68204.0,0.73135554]
[1729340196232,0.066174,68205.0,68204.0,0.37055554]
[1729340196435,0.066174,68205.0,68204.0,0.73135554]
[1729340196645,0.066174,68205.0,68204.0,0.37055554]
[1729340197239,0.066174,68205.0,68204.0,0.73135554]
[1729340198937,0.066174,68205.0,68204.0,0.69905554]
[1729340199146,0.066174,68205.0,68204.0,0.63308054]
[1729340199533,0.066174,68205.0,68204.0,0.69905554]
[1729340199936,0.066174,68205.0,68204.0,0.63308054]
[1729340200132,1e-08,68205.0,68204.0,0.63308054]
[1729340200645,0.06597401,68205.0,68204.0,0.72023114]
[1729340200835,0.06597401,68205.0,68204.0,0.78620614]
[1729340202144,0.06597401,68205.0,68204.0,0.78620644]
[1729340202342,0.06597401,68205.0,68204.0,0.72023144]
[1729340207649,0.06597401,68205.0,68204.0,0.78620644]
[1729340208846,0.06597401,68205.0,68204.0,0.72029331]
[1729340209348,0.06597401,68205.0,68204.0,0.35949331]
[1729340213648,0.06597401,68205.0,68204.0,0.35948558]
[1729340214739,0.06597401,68205.0,68204.0,0.27228054]
[1729340222956,0.06597401,68205.0,68204.0,0.35974208]
[1729340223856,0.06597401,68205.0,68204.0,0.27228054]
[1729340224854,1e-08,68205.0,68204.0,0.33825554]
[1729340227454,1e-08,68205.0,68204.0,0.42622766]
[1729340228955,1e-08,68205.0,68204.0,0.33825554]
[1729340229559,1e-08,68205.0,68204.0,0.42622458]
[1729340229760,1e-08,68205.0,68204.0,0.42550749]
[1729340230360,1e-08,68205.0,68204.0,0.52681049]
[1729340230757,1e-08,68205.0,68204.0,0.62943294]
[1729340231355,1e-08,68205.0,68204.0,0.62946237]
[1729340233366,1e-08,68205.0,68204.0,0.52814282]
[1729340233567,1e-08,68205.0,68204.0,0.42552122]
[1729340233766,1e-08,68205.0,68204.0,0.88894282]
[1729340234067,1e-08,68205.0,68204.0,0.78632122]
[1729340234268,1e-08,68205.0,68204.0,0.88894282]
[1729340234462,1e-08,68205.0,68204.0,0.99043575]
[1729340234670,1e-08,68205.0,68204.0,0.78632122]
[1729340235968,1e-08,68205.0,68204.0,0.69905554]
[1729340236172,1e-08,68205.0,68204.0,0.78647538]
[1729340237762,1e-08,68205.0,68204.0,0.69905554]
[1729340244871,1e-08,68205.0,68204.0,0.78644047]
[1729340248481,1e-08,68205.0,68204.0,0.88785723]
[1729340251676,1e-08,68205.0,68204.0,0.78644047]
[1729340252880,1e-08,68205.0,68204.0,0.69905554]
[1729340255185,1e-08,68205.0,68204.0,0.85280666]
[1729340255678,1e-08,68205.0,68204.0,0.93997205]
[1729340256770,0.065966,68213.0,68204.0,0.87399705]
[1729340256975,0.065966,68213.0,68212.0,0.3608]
[1729340257376,0.065966,68213.0,68212.0,0.57989897]
[1729340257579,0.065966,68213.0,68212.0,0.65317211]
[1729340259476,0.065966,68213.0,68212.0,0.57989897]
[1729340259983,0.065966,68213.0,68212.0,0.66696448]
[1729340261780,0.065959,68220.0,68212.0,1.86720724]
[1729340261984,0.3608,68224.0,68212.0,1.86720724]
[1729340261985,0.3608,68224.0,68221.0,0.065958]
[1729340262181,0.065957,68222.0,68221.0,0.065958]
[1729340262684,0.065957,68222.0,68221.0,0.28502127]
[1729340263591,0.065957,68222.0,68221.0,0.3728762]
[1729340265082,0.065957,68222.0,68221.0,0.28502127]
[1729340271001,0.065957,68222.0,68221.0,0.30618661]
[1729340278697,0.0311,68228.0,68221.0,0.30618661]
[1729340278898,0.065955,68225.0,68223.0,0.0002]
[1729340280208,0.065955,68225.0,68223.0,0.066156]
[1729340280500,0.0311,68228.0,68226.0,0.065953]
[1729340280806,0.0311,68228.0,68227.0,0.21854429]
[1729340281204,0.097052,68228.0,68227.0,0.21854429]
[1729340285109,0.097052,68228.0,68227.0,0.28449629]
[1729340285710,0.097052,68228.0,68227.0,0.21854429]
[1729340294421,0.097052,68228.0,68227.0,0.30509091]
[1729340295115,0.097052,68228.0,68227.0,0.21854429]
[1729340296422,0.097052,68228.0,68227.0,0.3050962]
[1729340297020,0.065952,68228.0,68227.0,0.3050962]
[1729340298116,0.065952,68228.0,68227.0,0.30513636]
[1729340298719,0.065952,68228.0,68227.0,0.37108836]
[1729340305024,0.12938927,68228.0,68227.0,0.28449629]
[1729340306024,0.12939303,68228.0,68227.0,0.28449629]
[1729340308536,0.06344103,68228.0,68227.0,0.28449629]
[1729340309730,0.06344103,68228.0,68227.0,0.23317483]
[1729340310129,0.04800051,68228.0,68227.0,0.23317483]
[1729340313142,0.06595,68230.0,68229.0,0.065951]
[1729340313441,0.06595,68230.0,68229.0,0.15364276]
[1729340320435,0.06595,68230.0,68229.0,0.17453367]
[1729340321537,0.06595,68230.0,68229.0,0.08684191]
[1729340321749,0.06595,68230.0,68229.0,0.17456844]
[1729340322449,0.06595,68230.0,68229.0,0.08684191]
[1729340322637,0.06595,68230.0,68229.0,0.17456305]
[1729340325045,0.06595,68230.0,68229.0,0.17456185]
[1729340327249,0.3608,68235.0,68229.0,0.10861085]
[1729340327445,0.065946,68234.0,68233.0,0.15389676]
[1729340327848,0.3608,68235.0,68230.0,0.0002]
[1729340328045,0.3608,68235.0,68230.0,0.066349]
[1729340328250,0.066149,68231.0,68230.0,0.066349]
[1729340335052,0.066149,68231.0,68230.0,0.15422801]
[1729340336253,0.066149,68231.0,68230.0,0.08827901]
[1729340342351,0.066149,68231.0,68226.0,0.10259771]
[1729340342352,1.03988,68231.0,68226.0,0.10259771]
[1729340342558,1.03988,68231.0,68223.0,0.0004]
[1729340342559,0.361,68227.0,68223.0,0.0004]
[1729340342858,0.066155,68224.0,68223.0,0.0004]
[1729340343263,0.505875,68224.0,68223.0,0.0004]
[1729340343453,1.105875,68224.0,68223.0,0.0004]
[1729340343756,1.03992,68224.0,68219.0,0.0002]
[1729340343958,0.426959,68220.0,68219.0,0.0002]
[1729340344364,1.466719,68220.0,68219.0,0.0002]
[1729340344855,1.026959,68220.0,68219.0,0.0002]
[1729340345049,1.466719,68220.0,68219.0,0.0002]
[1729340345249,0.426959,68220.0,68219.0,0.0002]
[1729340346054,1.466719,68220.0,68219.0,0.0002]
[1729340346370,0.426959,68220.0,68219.0,0.0002]
[1729340346863,1.466719,68220.0,68219.0,0.0002]
[1729340347864,0.426959,68220.0,68219.0,0.0002]
[1729340348064,1.466719,68220.0,68219.0,0.0002]
[1729340348266,0.426959,68220.0,68219.0,0.0002]
[1729340350768,1.026959,68220.0,68219.0,0.0002]
[1729340351468,0.426959,68220.0,68219.0,0.0002]
[1729340351669,1.026959,68220.0,68219.0,0.0002]
[1729340354773,0.426959,68220.0,68219.0,0.0002]
[1729340354964,1.026959,68220.0,68219.0,0.0002]
[1729340355161,0.426959,68220.0,68219.0,0.0002]
[1729340365178,0.426959,68220.0,68219.0,0.02088708]
[1729340368473,0.426959,68220.0,68219.0,0.09412352]
[1729340369078,0.426959,68220.0,68219.0,0.02088708]
[1729340370881,0.066159,68220.0,68219.0,0.02088708]
[1729340372078,0.066159,68220.0,68219.0,0.10899058]
[1729340373280,0.066159,68220.0,68219.0,0.02088708]
[1729340383280,0.066159,68220.0,68219.0,0.02068708]
[1729340383476,0.065962,68217.0,68216.0,0.0319]
[1729340383679,0.066162,68217.0,68216.0,0.1199239]
[1729340384684,0.066162,68217.0,68216.0,0.0319]
[1729340385578,0.066162,68217.0,68216.0,0.11978288]
[1729340385788,0.066162,68217.0,68216.0,0.0319]
[1729340386277,0.066162,68217.0,68216.0,0.14099979]
[1729340391591,0.066162,68217.0,68216.0,0.05311691]
[1729340399089,0.066162,68217.0,68216.0,0.11907991]
[1729340403399,0.066162,68217.0,68216.0,0.20726297]
[1729340403793,0.066162,68217.0,68216.0,0.11907991]
[1729340404104,0.066162,68217.0,68216.0,0.20745094]
[1729340404798,0.066162,68217.0,68216.0,0.14148794]
[1729340407004,0.066162,68217.0,68216.0,0.14144052]
[1729340407510,0.066162,68217.0,68216.0,0.14143603]
[1729340407809,0.066162,68217.0,68216.0,0.14141752]
[1729340412511,0.066162,68217.0,68216.0,0.14146626]
[1729340415212,0.066162,68217.0,68216.0,0.56822926]
[1729340417218,0.066162,68217.0,68216.0,0.56819294]
[1729340417406,0.066162,68217.0,68216.0,0.47987991]
[1729340425519,0.066162,68217.0,68216.0,0.67054378]
[1729340426321,0.066162,68217.0,68216.0,0.77319884]
[1729340426614,0.066162,68217.0,68216.0,0.58214084]
[1729340426921,0.066162,68217.0,68216.0,0.77321125]
[1729340429822,0.066162,68217.0,68216.0,0.77325602]
[1729340430720,0.066162,68217.0,68216.0,0.67057723]
[1729340431420,0.066162,68217.0,68216.0,0.60461423]
[1729340431608,0.066162,68217.0,68216.0,0.60462629]
[1729340432219,0.066162,68217.0,68216.0,0.70732356]
[1729340432421,0.066162,68217.0,68216.0,0.60506263]
[1729340432619,0.066162,68217.0,68216.0,0.41391691]
[1729340433027,0.066162,68217.0,68216.0,0.05311691]
[1729340440532,0.066162,68217.0,68216.0,0.14150648]
[1729340441029,0.066162,68217.0,68216.0,0.14150843]
[1729340443034,0.066162,68217.0,68216.0,0.141521]
[1729340443428,0.066162,68217.0,68216.0,0.34673864]
[1729340444230,0.066162,68217.0,68216.0,0.24416646]
[1729340445931,0.066162,68217.0,68216.0,0.24419211]
[1729340446537,0.066162,68217.0,68216.0,0.1415348]
[1729340447644,0.066162,68217.0,68216.0,0.05311691]
[1729340455750,0.066162,68217.0,68216.0,0.14175776]
[1729340462649,0.066162,68217.0,68216.0,0.05311691]
[1729340471258,0.066162,68217.0,68216.0,0.14180473]
[1729340473068,0.066162,68217.0,68216.0,0.14176294]
[1729340473257,0.066162,68217.0,68216.0,0.20772594]
[1729340473457,0.066162,68217.0,68216.0,0.41319619]
[1729340473660,0.0002,68217.0,68216.0,0.41319619]
[1729340473866,0.066162,68217.0,68216.0,0.41319619]
[1729340474262,0.066162,68217.0,68216.0,0.41317127]
[1729340474964,0.3608,68237.0,68216.0,0.36103856]
[1729340475169,0.065954,68226.0,68224.0,0.065955]
[1729340475356,0.065954,68226.0,68225.0,0.15319317]
[1729340477276,0.065954,68226.0,68225.0,0.0649]
[1729340477970,0.065954,68226.0,68225.0,0.0958]
[1729340492671,0.065954,68226.0,68225.0,0.18395815]
[1729340492984,0.065954,68226.0,68225.0,0.0958]
[1729340493989,0.065954,68226.0,68225.0,0.18397614]
[1729340496788,0.065954,68226.0,68225.0,0.18369808]
[1729340497094,0.065954,68226.0,68225.0,0.0958]
[1729340501188,0.065954,68226.0,68225.0,0.18376435]
[1729340506393,0.065954,68226.0,68225.0,0.18378666]
[1729340507791,0.065954,68226.0,68225.0,0.0958]
[1729340515800,0.065954,68226.0,68225.0,0.18395312]
[1729340516101,0.065954,68226.0,68225.0,0.18395245]
[1729340519201,0.02162179,68234.0,68225.0,0.18395245]
[1729340519202,0.065946,68234.0,68225.0,0.54475245]
[1729340519403,0.065954,68226.0,68225.0,0.4566]
[1729340519605,0.065954,68226.0,68225.0,0.5447904]
[1729340520094,0.065954,68226.0,68225.0,0.1839904]
[1729340520295,0.065954,68226.0,68225.0,0.5447904]
[1729340521502,0.065954,68226.0,68225.0,0.1839904]
[1729340521698,0.065954,68226.0,68225.0,0.5447904]
[1729340522801,0.065954,68226.0,68225.0,0.4566]
[1729340523706,0.065954,68226.0,68225.0,0.3917]
[1729340523904,0.065954,68226.0,68225.0,0.3608]
[1729340525605,0.065955,68224.0,68223.0,0.38146869]
[1729340525900,0.066155,68224.0,68223.0,0.3608]
[1729340527603,0.066155,68224.0,68223.0,0.426756]
[1729340527793,0.066155,68224.0,68223.0,0.3608]
[1729340529602,0.066155,68224.0,68223.0,0.02113067]
[1729340529802,0.066155,68224.0,68223.0,0.3608]